bitfinex/quotes_ETHUSD_20251028
["timestamp","ask_amount","ask_price","bid_price","bid_amount"]
[1761628878183,1.221,4092.5,4092.4,2.9096539]
[1761628878382,1.221,4092.5,4092.4,3.84541768]
[1761628879394,0.001,4092.6,4092.5,2.44349419]
[1761628879610,1.222,4092.6,4092.5,2.90959419]
[1761628880012,1.222,4092.6,4092.5,3.00735294]
[1761628880549,1.222,4092.6,4092.5,6.88735294]
[1761628880731,1.222,4092.6,4092.5,7.92646]
[1761628884837,0.001,4092.6,4092.5,7.92646]
[1761628885041,1.222,4092.6,4092.5,7.92646]
[1761628885228,1.222,4092.6,4092.5,4.04646]
[1761628885604,0.001,4092.6,4092.5,4.19329494]
[1761628886343,0.001,4092.6,4092.5,4.576364]
[1761628886507,0.001,4092.6,4092.5,4.60079894]
[1761628886708,0.001,4092.6,4092.5,4.576364]
[1761628887007,0.001,4092.6,4092.5,4.60079894]
[1761628887222,0.001,4092.6,4092.5,4.576364]
[1761628887852,0.001,4092.6,4092.5,4.60079894]
[1761628888048,0.001,4092.6,4092.5,6.15599894]
[1761628888351,0.001,4092.6,4092.5,6.131564]
[1761628891444,0.001,4093.0,4092.9,2.44325539]
[1761628891644,0.001,4093.0,4092.9,8.97325576]
[1761628891850,0.001,4093.0,4092.9,9.53732321]
[1761628892255,0.001,4093.0,4092.9,9.63505426]
[1761628898136,0.001,4093.0,4092.9,13.51505426]
[1761628898834,1e-08,4093.3,4093.2,3.02578032]
[1761628899040,1e-08,4093.3,4093.2,12.78594936]
[1761628899236,1e-08,4093.3,4093.2,13.2260186]
[1761628899566,1e-08,4093.3,4093.2,13.44613461]
[1761628899772,1e-08,4093.3,4093.2,17.74667289]
[1761628899968,1e-08,4093.3,4093.2,20.10321819]
[1761628900470,1e-08,4093.3,4093.2,15.80267991]
[1761628905075,1e-08,4093.3,4093.2,15.33817991]
[1761628905846,1e-08,4093.3,4093.2,10.86044163]
[1761628907469,1e-08,4093.3,4093.2,11.32494163]
[1761628909170,1e-08,4093.3,4093.2,10.86044163]
[1761628910447,0.43780001,4093.3,4093.2,6.54319233]
[1761628911048,1.65880001,4093.3,4093.2,6.54319233]
[1761628912587,1.65880001,4093.3,4093.2,4.10011601]
[1761628912793,1.65880001,4093.3,4093.2,0.1224]
[1761628913082,1.82488001,4093.3,4092.8,0.002]
[1761628913244,0.2317,4092.9,4092.8,0.1244]
[1761628913695,0.6227,4092.9,4092.8,0.1244]
[1761628914254,1.8437,4092.9,4092.8,0.1244]
[1761628915388,0.6227,4092.9,4092.8,0.1244]
[1761628915682,1.8437,4092.9,4092.8,0.1244]
[1761628916449,0.6227,4092.9,4092.8,0.1244]
[1761628916652,1.8437,4092.9,4092.8,0.1244]
[1761628918316,0.6227,4092.9,4092.8,0.1244]
[1761628918497,1.8437,4092.9,4092.8,0.1244]
[1761628918998,2.02807,4092.9,4092.8,0.1244]
[1761628921512,0.6227,4092.9,4092.8,0.1244]
[1761628921713,1.8437,4092.9,4092.8,0.1244]
[1761628921991,0.6227,4092.9,4092.8,2.56771508]
[1761628922211,1.4527,4092.9,4092.8,2.56771508]
[1761628922523,1.8437,4092.9,4092.8,2.56771508]
[1761628924087,0.2317,4092.9,4092.8,2.56771508]
[1761628924431,1e-08,4093.3,4093.2,2.44307632]
[1761628924616,1.62880001,4093.3,4093.2,2.44307632]
[1761628925000,0.40780001,4093.3,4093.2,2.44307632]
[1761628925294,1.22100001,4093.3,4093.2,2.44307632]
[1761628927491,1e-08,4093.3,4093.2,2.44307632]
[1761628927688,1.22100001,4093.3,4093.2,3.36047904]
[1761628931393,1.29540001,4093.3,4093.2,3.36047904]
[1761628931931,1.70320001,4093.3,4093.2,3.36047904]
[1761628932132,1.70320001,4093.3,4093.2,2.44307632]
[1761628933039,1.70320001,4093.3,4093.1,3.88]
[1761628933242,0.4078,4093.2,4093.1,3.88]
[1761628933743,0.4078,4093.2,4093.1,6.323136]
[1761628934306,0.4078,4093.2,4093.1,6.445536]
[1761628935046,0.4078,4093.2,4093.1,4.0024]
[1761628935612,0.4078,4093.2,4093.1,6.445536]
[1761628936312,0.4078,4093.2,4093.1,2.565536]
[1761628937950,0.4078,4093.2,4093.1,0.1224]
[1761628938127,0.57822,4093.2,4093.1,0.1224]
[1761628938448,0.57822,4093.2,4093.1,0.002]
[1761628939439,3.02129632,4093.2,4093.1,0.002]
[1761628941432,4.57649632,4093.2,4093.1,0.002]
[1761628941755,5.10182736,4093.2,4093.1,0.002]
[1761628945571,5.19961025,4093.2,4093.1,0.002]
[1761628948756,2.44325539,4092.9,4092.8,0.002]
[1761628949079,2.44337478,4092.7,4092.6,0.002]
[1761628949380,4.52390582,4092.7,4092.6,0.002]
[1761628949541,4.92360582,4092.7,4092.6,0.002]
[1761628950143,5.02140521,4092.7,4092.6,0.002]
[1761628950441,6.38331972,4092.7,4092.6,0.002]
[1761628954775,6.78882372,4092.7,4092.6,0.002]
[1761628955083,8.00982372,4092.7,4092.6,0.002]
[1761628963587,5.15442462,4092.4,4092.1,0.002]
[1761628963788,0.92503104,4092.3,4092.1,0.002]
[1761628963997,0.49010274,4092.2,4092.1,0.002]
[1761628964294,4.98648932,4092.2,4092.1,0.002]
[1761628964497,5.51182036,4092.2,4092.1,0.002]
[1761628964665,5.63422036,4092.2,4092.1,0.002]
[1761628966790,6.03972436,4092.2,4092.1,0.002]
[1761628967771,14.64641928,4092.2,4092.1,0.002]
[1761628969378,15.30107918,4092.2,4092.1,0.002]
[1761628972292,17.87207918,4092.2,4092.1,0.002]
[1761628972500,14.64641928,4092.2,4092.1,0.002]
[1761628972699,15.86841928,4092.2,4092.1,0.002]
[1761628977504,15.06321528,4092.2,4092.1,0.002]
[1761628977672,15.46291528,4092.2,4092.1,0.002]
[1761628979970,14.24091528,4092.2,4092.1,0.002]
[1761628980173,15.46291528,4092.2,4092.1,0.002]
[1761628980908,9.93756782,4092.2,4092.1,0.002]
[1761628981208,15.06321528,4092.2,4092.1,0.002]
[1761628981379,15.46291528,4092.2,4092.1,0.002]
[1761628984195,14.24091528,4092.2,4092.1,0.002]
[1761628984397,15.36510202,4092.2,4092.1,0.002]
[1761628984591,14.14310202,4092.2,4092.1,0.002]
[1761628984981,15.36510202,4092.2,4092.1,0.002]
[1761628985611,14.14310202,4092.2,4092.1,0.002]
[1761628985811,15.36510202,4092.2,4092.1,0.002]
[1761628987301,16.23809814,4092.2,4092.1,0.002]
[1761628989410,15.36510202,4092.2,4092.1,0.002]
[1761628989788,15.36510202,4092.2,4091.9,0.002]
[1761628989789,4.40443704,4092.1,4091.9,0.002]
[1761628989993,4.5243238,4092.0,4091.9,0.002]
[1761628990210,4.9240238,4092.0,4091.9,0.002]
[1761628990811,6.20391537,4092.0,4091.9,0.002]
[1761628990983,1.7425,4091.7,4091.5,0.002]
[1761628991183,11.91421019,4091.6,4091.5,0.002]
[1761628991512,7.50352146,4091.6,4091.5,0.002]
[1761628991682,8.37797649,4091.6,4091.5,0.002]
[1761628992214,7.50352146,4091.6,4091.5,0.002]
[1761628992419,8.37797649,4091.6,4091.5,0.002]
[1761628992626,7.50352146,4091.6,4091.5,0.002]
[1761628993191,7.07742146,4091.6,4091.5,0.002]
[1761628993721,7.50352146,4091.6,4091.5,0.002]
[1761628994294,6.28152146,4091.6,4091.5,0.002]
[1761628994495,7.50352146,4091.6,4091.5,0.002]
[1761628995094,7.07742146,4091.6,4091.5,0.002]
[1761628995808,7.32757714,4091.6,4091.5,0.002]
[1761628996006,6.67191746,4091.6,4091.5,0.002]
[1761628996330,5.86896271,4091.6,4091.5,0.002]
[1761628996507,5.86896271,4091.6,4091.5,0.4486]
[1761628996702,5.86896271,4091.6,4091.5,0.002]
[1761628997795,2.44427062,4091.2,4091.1,0.1207]
[1761628998015,8.30281808,4091.2,4091.1,0.1207]
[1761628998236,8.42521808,4091.2,4091.1,0.1207]
[1761628998394,8.42521808,4091.2,4091.1,0.5673]
[1761628999424,5.98094746,4091.2,4091.1,0.5673]
[1761628999626,1.5552,4091.2,4091.1,0.5673]
[1761628999842,2.7772,4091.2,4091.1,0.5673]
[1761629000043,1.5552,4091.2,4091.1,0.5673]
[1761629000343,2.7772,4091.2,4091.1,0.5673]
[1761629001118,1.5552,4091.2,4091.1,0.5673]
[1761629001320,2.7772,4091.2,4091.1,0.5673]
[1761629001558,5.22147062,4091.2,4091.1,0.5673]
[1761629004533,2.7772,4091.2,4091.1,0.5673]
[1761629006253,0.1224,4091.4,4091.1,0.1207]
[1761629006546,2.4439081,4091.9,4091.1,2.56498611]
[1761629006764,1.222,4091.3,4091.2,0.50094026]
[1761629006920,1.222,4091.3,4091.2,0.94754026]
[1761629008546,1.223,4091.3,4091.2,0.94754026]
[1761629008945,1.223,4091.3,4091.2,3.39181088]
[1761629009376,0.001,4091.3,4091.2,3.39181088]
[1761629009863,1.223,4091.3,4091.2,3.39181088]
[1761629010552,0.001,4091.3,4091.2,3.39181088]
[1761629010753,1.223,4091.3,4091.2,3.39181088]
[1761629012154,1.223,4091.3,4091.2,4.12528838]
[1761629014643,1.223,4091.3,4091.2,1.1800775]
[1761629016060,1.223,4091.3,4091.2,3.62434812]
[1761629016370,1.223,4091.3,4091.2,3.74674812]
[1761629016546,1.223,4091.3,4091.2,1.3024775]
[1761629017470,1.223,4091.3,4091.2,0.569]
[1761629018138,3.66721088,4091.3,4091.2,0.1224]
[1761629018338,3.99947062,4091.2,4091.1,0.002]
[1761629018672,4.96086672,4091.2,4091.1,0.002]
[1761629019775,9.26421418,4091.2,4091.1,0.002]
[1761629019953,11.07761942,4091.2,4091.1,0.002]
[1761629020476,2.44456938,4090.7,4090.6,0.002]
[1761629020776,8.42551684,4090.7,4090.6,0.002]
[1761629020959,9.38691294,4090.7,4090.6,0.002]
[1761629021167,10.44515039,4090.7,4090.6,0.002]
[1761629023161,9.92175429,4090.7,4090.6,0.002]
[1761629025246,9.92175429,4090.7,4089.4,0.05]
[1761629025247,2.85019291,4090.5,4089.4,0.05]
[1761629025450,4.2276867,4089.5,4089.4,0.05]
[1761629025876,4.6634867,4089.5,4089.4,0.05]
[1761629026106,1.222,4089.5,4089.4,0.5153]
[1761629026678,1.222,4089.5,4089.4,0.83048918]
[1761629029157,1.222,4089.5,4089.4,0.5153]
[1761629029357,1.222,4089.5,4089.4,2.96060532]
[1761629029970,1.222,4089.5,4089.4,0.5153]
[1761629030198,1.222,4089.5,4089.4,2.96063179]
[1761629034969,1.222,4089.5,4089.4,2.9606465]
[1761629035169,1.222,4089.5,4089.4,4.25413435]
[1761629035375,1.222,4089.5,4089.4,4.37653435]
[1761629035781,0.1224,4090.5,4089.4,1.46588785]
[1761629035967,2.44464317,4090.6,4090.4,0.1772]
[1761629036171,2.44464317,4090.6,4090.1,0.5877]
[1761629036172,1.222,4090.5,4090.1,0.5877]
[1761629036372,1.222,4090.5,4090.2,0.1772]
[1761629036573,1.222,4090.5,4090.2,0.6425]
[1761629037294,2.56698959,4090.7,4090.2,0.6425]
[1761629037501,1.222,4090.6,4090.2,0.6425]
[1761629037675,1.222,4090.6,4090.3,0.4653]
[1761629038283,3.66673538,4090.5,4090.1,0.1224]
[1761629038480,0.1224,4090.7,4090.1,0.1224]
[1761629038810,3.66665089,4090.6,4090.2,0.1772]
[1761629038976,2.44465089,4090.6,4090.2,0.1772]
[1761629039176,1.222,4090.5,4090.2,0.1772]
[1761629039380,3.6667123,4090.5,4090.2,0.1772]
[1761629039594,1.222,4090.5,4090.2,0.1772]
[1761629041012,1.222,4090.5,4090.2,3.08731052]
[1761629041215,1.222,4090.4,4090.3,2.44476657]
[1761629041391,1.222,4090.4,4090.3,0.4653]
[1761629041595,1.222,4090.4,4090.3,0.5877]
[1761629041807,3.99965354,4090.9,4090.3,0.5877]
[1761629042009,0.001,4091.3,4090.2,3.26088818]
[1761629042010,0.001,4091.3,4090.7,2.44452614]
[1761629042213,1.222,4090.8,4090.7,2.44456938]
[1761629042396,0.001,4091.3,4090.4,0.38485882]
[1761629042598,0.001,4091.3,4091.2,0.1207]
[1761629042797,1.223,4091.3,4091.2,2.56497062]
[1761629043000,0.001,4091.3,4091.2,0.586]
[1761629043189,1.223,4091.3,4091.2,0.1207]
[1761629043522,0.001,4091.3,4091.2,0.586]
[1761629044017,1.223,4091.3,4091.2,0.586]
[1761629044221,1.223,4091.3,4091.2,3.03027062]
[1761629044731,1.223,4091.3,4091.2,0.586]
[1761629045821,1.223,4091.3,4091.2,0.1207]
[1761629048519,1.6534,4091.3,4090.4,0.38485882]
[1761629048826,4.09762076,4091.3,4090.5,2.70090121]
[1761629049128,4.09762076,4091.3,4090.6,2.44460918]
[1761629049909,1.6534,4091.3,4090.7,2.44455999]
[1761629051035,1.223,4091.3,4090.8,2.44446225]
[1761629051530,1.223,4091.3,4090.7,2.88985136]
[1761629052033,1.223,4091.3,4091.0,0.1224]
[1761629056200,1.6534,4091.3,4091.0,0.1224]
[1761629056400,2.44433037,4091.1,4091.0,0.1224]
[1761629056737,2.44436934,4091.1,4090.6,0.1224]
[1761629056902,0.4304,4091.0,4090.6,0.1224]
[1761629057231,0.4304,4091.0,4090.2,2.62205475]
[1761629057410,1.222,4090.9,4090.5,2.44463369]
[1761629057734,1.222,4090.9,4090.6,0.4453]
[1761629058104,1.222,4090.8,4090.5,2.44467868]
[1761629061557,1.222,4090.8,4090.6,2.44462138]
[1761629061928,0.1224,4091.2,4090.4,0.1224]
[1761629062129,0.001,4091.3,4091.2,2.44427062]
[1761629062342,1.223,4091.3,4091.1,2.68740776]
[1761629062564,1.223,4091.3,4091.2,2.88957062]
[1761629063322,1.223,4091.3,4091.1,2.68742839]
[1761629063539,1.223,4091.3,4091.1,3.13272839]
[1761629064152,1.223,4091.3,4091.1,0.6884]
[1761629064318,1.223,4091.3,4091.1,0.1224]
[1761629065255,0.001,4091.3,4091.1,0.1224]
[1761629065552,1.6524,4091.2,4090.2,0.1772]
[1761629065722,1.6524,4091.2,4090.9,0.1224]
[1761629066645,1.222,4091.2,4090.9,0.1224]
[1761629066853,1.6524,4091.2,4090.9,0.1224]
[1761629067959,1.222,4091.2,4090.9,0.1224]
[1761629068260,0.56494,4091.1,4090.6,0.1224]
[1761629068454,0.4304,4091.0,4090.6,0.1224]
[1761629069758,1.222,4090.9,4090.6,0.1224]
[1761629073436,1.6524,4090.9,4090.6,0.1224]
[1761629074064,0.4304,4090.8,4090.6,0.1224]
[1761629074564,1.222,4090.7,4090.6,0.1224]
[1761629076164,1.222,4090.7,4090.6,3.03932914]
[1761629076738,1.222,4090.7,4090.6,0.5947]
[1761629079557,1.223,4090.7,4090.6,0.5947]
[1761629082362,1.223,4090.7,4090.6,3.03932914]
[1761629082741,0.001,4090.7,4090.6,3.03932914]
[1761629082966,1.223,4090.7,4090.6,3.03932914]
[1761629083655,0.001,4090.7,4090.6,3.03932914]
[1761629083867,1.223,4090.7,4090.6,3.03932914]
[1761629084978,0.001,4090.7,4090.6,3.03932914]
[1761629085280,1.223,4090.7,4090.6,0.1224]
[1761629085487,0.001,4090.7,4090.6,0.1224]
[1761629085797,1.223,4090.7,4090.6,0.1224]
[1761629086966,1.223,4090.7,4090.6,2.56702914]
[1761629087169,1.223,4090.7,4090.6,3.03932914]
[1761629087368,0.001,4090.7,4090.6,3.11543679]
[1761629087681,1.223,4090.7,4090.6,3.58773679]
[1761629088047,0.001,4090.7,4090.6,3.58773679]
[1761629088275,1.223,4090.7,4090.6,3.58773679]
[1761629088647,0.001,4090.7,4090.6,3.58773679]
[1761629088853,1.223,4090.7,4090.6,3.58773679]
[1761629090775,1.223,4090.7,4090.6,7.46773679]
[1761629095800,0.001,4090.7,4090.6,7.46773679]
[1761629096113,1.223,4090.7,4090.6,7.46773679]
[1761629096859,0.001,4090.7,4090.6,7.46773679]
[1761629098473,0.001,4090.7,4090.6,6.99543679]
[1761629098985,0.001,4090.7,4090.6,7.46773679]
[1761629101394,0.001,4090.7,4090.6,4.0024]
[1761629101597,0.4562,4090.7,4090.6,0.1224]
[1761629102282,0.001,4090.7,4090.6,0.1224]
[1761629102482,0.001,4090.7,4090.6,2.56702914]
[1761629103698,1.223,4090.7,4090.6,2.56702914]
[1761629104507,1.223,4090.7,4090.6,0.1224]
[1761629105020,1.6669,4090.7,4090.6,0.1224]
[1761629105208,1.223,4090.7,4090.6,0.1224]
[1761629105392,1.223,4090.7,4090.6,2.56702914]
[1761629105715,0.001,4090.7,4090.6,2.56702914]
[1761629105896,1.223,4090.7,4090.6,2.56702914]
[1761629110617,0.001,4090.7,4090.6,2.56702914]
[1761629110797,1.223,4090.7,4090.6,3.53170583]
[1761629110997,0.001,4090.7,4090.6,3.53170583]
[1761629111198,1.223,4090.7,4090.6,3.53170583]
[1761629112506,1.223,4090.7,4090.6,3.06820583]
[1761629112711,1.223,4090.7,4090.6,0.1224]
[1761629113316,1.223,4090.7,4090.6,2.56702914]
[1761629114029,1.6624,4090.7,4090.6,2.56702914]
[1761629114526,1.223,4090.7,4090.6,2.56702914]
[1761629116630,1.223,4090.7,4090.6,0.1224]
[1761629116821,1.6624,4090.7,4090.6,0.1224]
[1761629117021,1.6624,4090.7,4090.6,2.56702914]
[1761629118833,1.6624,4090.7,4090.6,0.1224]
[1761629119637,1.223,4090.7,4090.6,0.1224]
[1761629119842,1.6624,4090.7,4090.6,0.1224]
[1761629121341,1.85045,4090.7,4090.6,0.1224]
[1761629126222,1.6624,4090.7,4090.6,0.1224]
[1761629127026,1.223,4090.7,4090.6,0.1224]
[1761629127341,1.223,4090.7,4090.6,0.1968]
[1761629128621,1.223,4090.7,4090.6,2.64142914]
[1761629128822,1.223,4090.7,4090.6,3.10492914]
[1761629129024,1.223,4090.7,4090.6,3.67760921]
[1761629129222,0.001,4090.7,4090.6,3.67760921]
[1761629129443,1.223,4090.7,4090.6,3.67760921]
[1761629130315,1.223,4090.7,4090.6,3.21410921]
[1761629130626,1.223,4090.7,4090.6,3.67760921]
[1761629131028,1.223,4090.7,4090.6,3.21410921]
[1761629133015,0.001,4090.7,4090.6,3.67760921]
[1761629133217,1.223,4090.7,4090.6,3.67760921]
[1761629135847,0.001,4090.7,4090.6,3.21410921]
[1761629136055,1.223,4090.7,4090.6,3.21410921]
[1761629137319,1.223,4090.7,4090.6,3.68490921]
[1761629137530,0.001,4090.7,4090.6,3.68490921]
[1761629138050,1.223,4090.7,4090.6,3.68490921]
[1761629138248,0.001,4090.7,4090.6,3.68490921]
[1761629138442,1.223,4090.7,4090.6,3.68490921]
[1761629140150,0.001,4090.7,4090.6,3.68490921]
[1761629140351,1.223,4090.7,4090.6,3.68490921]
[1761629142054,0.001,4090.7,4090.6,11.89110043]
[1761629142256,0.001,4090.7,4090.6,11.86665414]
[1761629142462,0.001,4090.7,4090.6,7.09410921]
[1761629143361,0.001,4090.7,4090.6,7.56490921]
[1761629149681,0.001,4090.7,4090.6,12.27215814]
[1761629149836,0.001,4090.7,4090.6,7.97041321]
[1761629150267,0.001,4090.7,4090.6,9.40321321]
[1761629150466,0.001,4090.7,4090.6,9.52561321]
[1761629152265,0.001,4090.7,4090.6,8.64930921]
[1761629152451,0.001,4090.7,4090.6,7.09410921]
[1761629156067,0.001,4090.7,4090.6,4.64948007]
[1761629156264,0.001,4090.7,4090.6,3.21410921]
[1761629156467,0.001,4090.7,4090.6,3.68490921]
[1761629156674,0.001,4090.7,4090.6,3.21410921]
[1761629159980,0.001,4090.7,4090.6,0.1968]
[1761629160200,1.6668,4090.7,4090.6,0.1968]
[1761629160400,1.6668,4090.7,4090.6,0.0744]
[1761629160401,4.11136938,4090.7,4090.6,0.0744]
[1761629160886,4.84508546,4090.7,4090.6,0.0744]
[1761629161253,6.12435703,4090.7,4090.6,0.0744]
[1761629167354,4.90335703,4090.7,4090.6,0.0744]
[1761629167555,5.39164095,4090.7,4090.6,0.0744]
[1761629167754,4.11236938,4090.7,4090.6,0.0744]
[1761629174213,5.66756938,4090.7,4090.6,0.0744]
[1761629174418,5.79196938,4090.7,4090.6,0.0744]
[1761629175174,10.95273762,4090.7,4090.6,0.0744]
[1761629177596,2.1254,4090.7,4090.6,0.0744]
[1761629177797,1.223,4090.7,4090.6,0.0744]
[1761629178175,0.001,4090.7,4090.6,0.0744]
[1761629178404,1.223,4090.7,4090.6,2.98252914]
[1761629178606,1.223,4090.7,4090.6,0.6171268]
[1761629179309,1.223,4090.7,4090.6,0.0744]
[1761629180093,1.223,4090.7,4090.6,2.51902914]
[1761629180635,1.223,4090.7,4090.6,0.0744]
[1761629180798,0.001,4090.7,4090.6,2.98252914]
[1761629181135,1.223,4090.7,4090.6,0.5379]
[1761629181334,1.223,4090.7,4090.6,2.98252914]
[1761629181828,0.001,4090.7,4090.6,3.52525929]
[1761629182027,1.223,4090.7,4090.6,3.52525929]
[1761629182812,0.001,4090.7,4090.6,3.52525929]
[1761629183031,1.223,4090.7,4090.6,3.52525929]
[1761629183358,0.001,4090.7,4090.6,3.52525929]
[1761629183548,0.001,4090.7,4090.6,5.51040958]
[1761629183887,0.001,4090.7,4090.6,5.48596329]
[1761629185747,0.001,4090.7,4090.6,5.58374618]
[1761629187815,0.001,4090.7,4090.6,5.70614618]
[1761629188366,1.223,4092.2,4092.1,2.84923704]
[1761629188367,0.001,4092.2,4092.1,2.84923704]
[1761629188655,0.001,4092.2,4092.1,8.61896631]
[1761629188801,0.001,4092.2,4092.1,9.05802898]
[1761629189000,0.001,4092.2,4092.1,9.15577722]
[1761629194244,1e-08,4093.3,4093.1,2.443136]
[1761629194542,1e-08,4093.3,4093.1,7.8094356]
[1761629194842,1e-08,4093.3,4093.1,9.24206908]
[1761629197961,0.4516,4093.2,4093.1,2.443136]
[1761629198255,0.001,4093.2,4093.1,2.443136]
[1761629199362,0.001,4093.2,4093.1,7.60390424]
[1761629199566,0.001,4093.2,4093.1,8.44120824]
[1761629199725,0.001,4093.2,4093.1,9.52965032]
[1761629200631,0.001,4093.2,4093.1,11.08485032]
[1761629202243,0.001,4093.2,4093.1,5.92408208]
[1761629204146,0.001,4093.2,4093.1,6.1442031]
[1761629210980,0.001,4093.2,4093.1,10.87317134]
[1761629211280,0.001,4093.2,4093.1,11.30497134]
[1761629211849,0.001,4093.2,4093.1,10.43884232]
[1761629215984,0.001,4093.2,4093.1,10.00704232]
[1761629216171,0.001,4093.2,4093.1,9.5038173]
[1761629216651,0.001,4093.2,4093.1,10.2187213]
[1761629216856,0.001,4093.2,4093.1,14.51336052]
[1761629217054,0.001,4093.2,4093.1,10.2187213]
[1761629220664,0.001,4093.2,4093.1,14.51336052]
[1761629221071,0.001,4093.2,4093.1,10.2187213]
[1761629221690,0.011,4093.8,4093.6,2.8483416]
[1761629221908,0.001,4094.1,4093.9,2.84816258]
[1761629222201,0.001,4094.1,4093.9,4.42778916]
[1761629222396,0.001,4094.1,4093.9,4.85958916]
[1761629222707,0.001,4094.1,4093.9,9.1298018]
[1761629223885,0.001,4094.1,4093.9,8.6980018]
[1761629224079,0.001,4094.1,4093.9,10.15245606]
[1761629224692,0.001,4094.1,4093.9,10.59495606]
[1761629226479,1e-08,4094.2,4094.1,2.84804326]
[1761629226799,1e-08,4094.2,4094.1,4.72726865]
[1761629227007,1e-08,4094.2,4094.1,6.53363476]
[1761629227178,1e-08,4094.2,4094.1,6.50920937]
[1761629228800,1e-08,4094.2,4094.1,6.04150937]
[1761629229007,1e-08,4094.2,4094.1,5.86430937]
[1761629229506,1e-08,4094.2,4094.1,3.78120537]
[1761629229798,1e-08,4094.2,4094.1,4.18670937]
[1761629230506,1e-08,4094.2,4094.1,5.74190937]
[1761629230804,1e-08,4094.2,4094.1,10.03654859]
[1761629232403,0.44140001,4094.2,4094.1,10.03654859]
[1761629233806,1e-08,4094.2,4094.1,10.03654859]
[1761629234011,0.44140001,4094.2,4094.1,2.44253926]
[1761629234178,0.44140001,4094.2,4093.9,2.44461379]
[1761629234179,0.44140001,4094.2,4093.9,0.002]
[1761629234379,0.44140001,4094.2,4094.0,2.44256027]
[1761629234583,0.44140001,4094.2,4093.9,0.002]
[1761629235410,0.44140001,4094.2,4094.0,2.44259892]
[1761629235609,0.44140001,4094.2,4094.1,2.44253926]
[1761629235798,1.66140001,4094.2,4094.1,2.44253926]
[1761629236195,1.66140001,4094.2,4093.9,0.002]
[1761629236506,0.4414,4094.1,4093.9,2.44463678]
[1761629237095,0.4414,4094.1,4093.9,0.002]
[1761629238013,0.4414,4094.1,4093.9,2.44464764]
[1761629238311,1.22,4094.0,4093.9,2.44464764]
[1761629238913,1.6614,4094.0,4093.9,2.44464764]
[1761629239411,1.6614,4094.0,4093.9,2.56704764]
[1761629239715,1e-08,4094.2,4094.1,2.44253926]
[1761629239914,1e-08,4094.2,4094.1,6.73717848]
[1761629248643,1e-08,4094.2,4094.1,13.4602217]
[1761629249023,1e-08,4094.2,4094.1,9.16558248]
[1761629249709,1e-08,4094.2,4094.1,9.28798248]
[1761629249909,1e-08,4094.2,4094.1,10.51134429]
[1761629250316,1e-08,4094.2,4094.1,10.51334429]
[1761629253445,1e-08,4094.2,4094.1,5.75100507]
[1761629253727,1e-08,4094.2,4094.1,10.04564429]
[1761629255310,0.43710001,4094.2,4094.1,8.49044429]
[1761629255513,0.43710001,4094.2,4094.1,10.04564429]
[1761629255720,1e-08,4094.2,4094.1,10.04564429]
[1761629256039,1e-08,4094.2,4094.1,8.49044429]
[1761629258641,1e-08,4094.2,4094.1,10.04564429]
[1761629260818,0.43710001,4094.2,4094.1,8.41677848]
[1761629261843,1e-08,4094.2,4094.1,8.41677848]
[1761629262047,1e-08,4094.2,4094.1,8.29437848]
[1761629262351,1e-08,4094.2,4094.1,8.69988248]
[1761629262923,1e-08,4094.2,4094.1,9.14198248]
[1761629263143,1e-08,4094.2,4094.1,10.30064549]
[1761629265444,1e-08,4094.2,4094.1,9.85854549]
[1761629267528,0.43710001,4094.2,4094.1,5.15840227]
[1761629267724,0.43710001,4094.2,4094.1,3.99973926]
[1761629269967,1e-08,4094.2,4094.1,3.99973926]
[1761629270735,0.43710001,4094.2,4094.1,2.44453926]
[1761629271957,0.43710001,4094.2,4094.1,2.56693926]
[1761629276088,0.001,4095.1,4094.1,2.56693926]
[1761629276089,1e-08,4095.8,4095.7,2.84708907]
[1761629276293,1e-08,4095.8,4095.7,9.55509317]
[1761629276587,1e-08,4095.8,4095.7,9.99719317]
[1761629276889,1e-08,4095.8,4095.7,11.24107888]
[1761629277187,1e-08,4095.8,4095.7,11.63147732]
[1761629277389,1e-08,4095.8,4095.7,11.24107888]
[1761629277738,1e-08,4095.8,4095.7,10.79897888]
[1761629279778,1e-08,4095.8,4095.7,5.64617478]
[1761629281642,1e-08,4095.8,4095.7,6.08827478]
[1761629284788,0.00100001,4095.8,4095.7,6.08827478]
[1761629285870,0.00100001,4095.8,4095.7,6.21067478]
[1761629286884,1e-08,4096.7,4096.6,0.2281]
[1761629287086,1e-08,4096.8,4096.7,4.40169308]
[1761629287275,1e-08,4096.8,4096.7,7.20843546]
[1761629290882,1e-08,4096.8,4096.7,7.70161134]
[1761629292590,1e-08,4096.8,4096.7,7.79961134]
[1761629293587,1e-08,4096.8,4096.7,7.70161134]
[1761629295300,0.4544,4097.8,4097.7,2.84589739]
[1761629295474,0.4544,4097.8,4097.7,4.68568713]
[1761629295673,0.4544,4097.8,4097.7,4.80808713]
[1761629298000,0.01,4097.8,4097.7,4.80808713]
[1761629298302,0.4544,4097.8,4097.7,4.80808713]
[1761629299777,0.4544,4097.8,4097.7,9.95072481]
[1761629301476,0.01,4097.8,4097.7,9.95072481]
[1761629302306,0.011,4097.8,4097.7,9.95072481]
[1761629303486,1e-08,4097.8,4097.7,9.95072481]
[1761629303678,1e-08,4097.8,4097.7,10.37822481]
[1761629304823,1e-08,4097.8,4097.7,9.95072481]
[1761629306222,1e-08,4097.8,4097.7,4.80808713]
[1761629306409,0.44440001,4097.8,4097.7,9.95072481]
[1761629306810,1e-08,4097.8,4097.7,9.95072481]
[1761629308824,0.43760001,4097.8,4097.7,4.80808713]
[1761629310792,0.43760001,4097.8,4097.7,2.44039339]